bitfinex-derivatives/quotes_BTCF0:USTF0_20241109
["timestamp","ask_amount","ask_price","bid_price","bid_amount"]
[1731135022607,0.071366,76551.0,76550.0,0.05223016]
[1731135022906,0.10462732,76552.0,76550.0,0.07763453]
[1731135022907,0.032,76552.0,76550.0,0.07763453]
[1731135023114,0.097266,76552.0,76551.0,0.15597943]
[1731135023301,0.097266,76552.0,76551.0,0.07763453]
[1731135023896,0.065266,76552.0,76551.0,0.07763453]
[1731135024103,0.065266,76552.0,76551.0,0.29387275]
[1731135024297,0.065266,76552.0,76551.0,0.30796995]
[1731135025504,0.065266,76552.0,76551.0,0.21552785]
[1731135025902,0.065266,76552.0,76551.0,0.30800671]
[1731135026097,0.065266,76552.0,76551.0,0.21549058]
[1731135027012,0.065266,76552.0,76551.0,0.15587025]
[1731135028208,0.065266,76552.0,76551.0,0.07759726]
[1731135030104,0.065266,76552.0,76549.0,0.05217059]
[1731135030399,0.3624,76553.0,76549.0,0.11743859]
[1731135030609,0.065267,76551.0,76550.0,0.05217059]
[1731135030813,0.065267,76551.0,76550.0,0.05216722]
[1731135031003,0.065267,76551.0,76549.0,0.15858454]
[1731135031619,0.065267,76551.0,76550.0,0.05216722]
[1731135031806,0.065267,76551.0,76549.0,0.15858454]
[1731135032007,0.065267,76551.0,76550.0,0.065267]
[1731135032405,0.065267,76551.0,76550.0,0.11743422]
[1731135034903,0.065267,76551.0,76550.0,0.065267]
[1731135035107,0.065264,76554.0,76553.0,0.065265]
[1731135035305,0.065264,76554.0,76553.0,0.19005563]
[1731135036211,0.00196002,76557.0,76553.0,0.12479063]
[1731135036415,0.00196002,76557.0,76556.0,0.03912009]
[1731135037416,0.00196002,76557.0,76555.0,0.065263]
[1731135037417,0.065262,76556.0,76555.0,0.065263]
[1731135038107,0.065263,76555.0,76554.0,0.07262732]
[1731135038307,0.065263,76555.0,76554.0,0.15014957]
[1731135039120,0.065263,76555.0,76554.0,0.21541357]
[1731135040608,0.00196002,76557.0,76556.0,0.065262]
[1731135040804,0.00196002,76557.0,76556.0,0.14278425]
[1731135042215,0.06722102,76557.0,76556.0,0.14278425]
[1731135042610,0.00196002,76557.0,76556.0,0.21541157]
[1731135042814,0.0061,76562.0,76561.0,0.065258]
[1731135043017,0.065255,76565.0,76563.0,0.065256]
[1731135043228,0.065255,76565.0,76564.0,0.21540457]
[1731135044222,0.065255,76565.0,76564.0,0.07752225]
[1731135044525,0.43506732,76568.0,76564.0,0.07724316]
[1731135044726,0.49867932,76568.0,76567.0,0.06514684]
[1731135045220,0.065254,76566.0,76565.0,0.06514684]
[1731135045423,0.065255,76565.0,76564.0,0.06514684]
[1731135045924,0.065255,76564.0,76563.0,0.06514684]
[1731135046220,0.065255,76564.0,76561.0,0.06514684]
[1731135046221,0.065257,76562.0,76561.0,0.06514684]
[1731135046419,0.065257,76562.0,76559.0,0.06514684]
[1731135046420,0.065259,76560.0,76559.0,0.06514684]
[1731135046721,0.06526,76559.0,76558.0,0.06514684]
[1731135047919,0.065262,76556.0,76555.0,0.04149765]
[1731135048242,0.065262,76556.0,76555.0,0.14273541]
[1731135048414,0.065262,76556.0,76555.0,0.07758928]
[1731135049234,0.065262,76556.0,76555.0,0.15511061]
[1731135049527,0.065262,76556.0,76555.0,0.07752133]
[1731135052325,0.065263,76555.0,76554.0,0.12476473]
[1731135053010,0.065263,76555.0,76554.0,0.07262732]
[1731135053920,0.065263,76555.0,76554.0,0.12476473]
[1731135054117,0.065263,76555.0,76554.0,0.07262732]
[1731135055319,0.065263,76555.0,76554.0,0.12476473]
[1731135056224,0.065263,76555.0,76554.0,0.07262732]
[1731135057020,0.065263,76555.0,76554.0,0.12476473]
[1731135060216,0.065263,76555.0,76554.0,0.22816249]
[1731135060419,0.065263,76555.0,76554.0,0.149975]
[1731135064249,0.065263,76555.0,76554.0,0.24217681]
[1731135064931,0.065263,76555.0,76554.0,0.30744081]
[1731135066727,0.065263,76555.0,76554.0,0.30757825]
[1731135067124,0.065263,76555.0,76554.0,0.13789132]
[1731135075234,0.065263,76555.0,76554.0,0.21579581]
[1731135075439,0.065263,76555.0,76554.0,0.308678]
[1731135076932,0.065263,76555.0,76554.0,0.13789132]
[1731135077134,0.065263,76555.0,76554.0,0.30872979]
[1731135077439,0.065263,76555.0,76554.0,0.13789132]
[1731135078742,0.065263,76555.0,76554.0,0.21584084]
[1731135080228,0.065263,76555.0,76554.0,0.3087252]
[1731135082430,0.065263,76555.0,76554.0,0.21584084]
[1731135084542,0.065263,76555.0,76554.0,0.28113237]
[1731135085543,0.065263,76555.0,76554.0,0.14324105]
[1731135085840,0.065263,76555.0,76554.0,0.07794952]
[1731135087246,0.065263,76555.0,76554.0,0.14324152]
[1731135087633,0.065263,76555.0,76554.0,0.07794952]
[1731135088746,0.065263,76555.0,76554.0,0.14321352]
[1731135090643,0.065263,76555.0,76554.0,0.23669419]
[1731135091538,0.065263,76555.0,76554.0,0.59749419]
[1731135097635,0.0061,76563.0,76554.0,0.59749419]
[1731135097842,0.065257,76562.0,76561.0,0.07262732]
[1731135098144,0.065257,76562.0,76561.0,0.15057684]
[1731135098649,0.065257,76562.0,76561.0,0.24396453]
[1731135099642,0.065257,76562.0,76561.0,0.30922253]
[1731135102058,0.065257,76562.0,76561.0,0.30903843]
[1731135102348,0.065257,76562.0,76561.0,0.30910607]
[1731135102554,0.065257,76562.0,76561.0,0.25710623]
[1731135102751,0.065257,76562.0,76561.0,0.35039586]
[1731135102955,0.065257,76562.0,76561.0,0.25710623]
[1731135105641,0.065257,76562.0,76561.0,0.18447891]
[1731135105845,0.0061,76568.0,76567.0,0.065253]
[1731135106059,0.0061,76568.0,76567.0,0.14379117]
[1731135106060,0.065252,76568.0,76567.0,0.14379117]
[1731135107157,0.0061,76574.0,76567.0,0.07853817]
[1731135107361,0.0061,76574.0,76573.0,0.065248]
[1731135107549,0.065245,76576.0,76573.0,0.21615982]
[1731135107750,0.065245,76576.0,76575.0,0.06521486]
[1731135108055,0.065245,76576.0,76575.0,0.14349936]
[1731135108257,0.065245,76576.0,76573.0,0.20309018]
[1731135108651,0.0061,76580.0,76573.0,0.20309018]
[1731135108856,0.065246,76575.0,76573.0,0.20309018]
[1731135109057,0.065246,76575.0,76574.0,0.065247]
[1731135112053,0.0061,76580.0,76574.0,0.07262732]
[1731135112253,0.0061,76580.0,76577.0,0.065244]
[1731135112459,0.065242,76581.0,76577.0,0.065244]
[1731135112660,0.065242,76581.0,76577.0,0.1437607]
[1731135113757,0.065242,76581.0,76577.0,0.14372508]
[1731135114757,0.065242,76580.0,76577.0,0.20881556]
[1731135114952,0.065242,76580.0,76577.0,0.14372508]
[1731135117461,0.0061,76584.0,76577.0,0.14372508]
[1731135117665,0.06720244,76578.0,76577.0,0.2163524]
[1731135119265,0.06720244,76578.0,76577.0,0.28141466]
[1731135119569,0.06720244,76578.0,76577.0,0.21643927]
[1731135119762,0.06720244,76578.0,76577.0,0.28149832]
[1731135119961,0.06720244,76578.0,76577.0,0.21643927]
[1731135120472,0.06720244,76578.0,76577.0,0.20887115]
[1731135120659,0.06720244,76578.0,76577.0,0.20293052]
[1731135120972,0.06720244,76578.0,76577.0,0.13787132]
[1731135121463,0.06720244,76578.0,76577.0,0.28146076]
[1731135121663,0.06720244,76578.0,76577.0,0.21640156]
[1731135121858,0.06720244,76578.0,76577.0,0.07853024]
[1731135122067,0.065245,76576.0,76574.0,0.06506032]
[1731135122373,0.10282732,76575.0,76568.0,0.07116032]
[1731135122557,0.065247,76574.0,76573.0,0.05205972]
[1731135122760,0.065247,76574.0,76568.0,0.06506032]
[1731135122761,0.065249,76572.0,76571.0,0.03904495]
[1731135123462,0.065249,76572.0,76570.0,0.03904495]
[1731135123658,0.46662732,76571.0,76567.0,0.05205972]
[1731135123868,0.46662732,76571.0,76567.0,0.09483955]
[1731135124170,0.065252,76568.0,76567.0,0.09483955]
[1731135124369,0.065252,76568.0,76567.0,0.04277983]
[1731135124567,0.46662732,76571.0,76563.0,0.3608]
[1731135124768,0.065255,76564.0,76563.0,0.3608]
[1731135125275,0.065255,76564.0,76563.0,0.42586032]
[1731135126159,0.065255,76564.0,76563.0,0.43976028]
[1731135126362,0.065255,76564.0,76563.0,0.48206184]
[1731135127775,0.065255,76564.0,76563.0,0.45518188]
[1731135131078,0.065255,76564.0,76563.0,0.40310156]
[1731135132264,0.065255,76564.0,76563.0,0.04230156]
[1731135132467,0.065255,76564.0,76563.0,0.05209575]
[1731135133268,0.065255,76564.0,76562.0,0.05209575]
[1731135133269,0.49868232,76564.0,76562.0,0.05209575]
[1731135133468,0.49868232,76564.0,76560.0,0.09304223]
[1731135133469,0.065258,76561.0,76560.0,0.09304223]
[1731135133771,0.065259,76560.0,76559.0,0.05209575]
[1731135134168,0.06526,76559.0,76558.0,0.12472307]
[1731135134672,0.06526,76559.0,76558.0,0.07924483]
[1731135134877,0.06526,76559.0,76558.0,0.15755997]
[1731135135065,0.06526,76559.0,76558.0,0.07924483]
[1731135135266,0.06526,76559.0,76558.0,0.12131801]
[1731135136669,0.06526,76559.0,76558.0,0.12135069]
[1731135138570,0.06526,76559.0,76558.0,0.04207318]
[1731135138777,0.07262732,76560.0,76554.0,0.07831514]
[1731135138975,0.065263,76555.0,76554.0,0.13016036]
[1731135139284,0.065263,76555.0,76554.0,0.20278768]
[1731135140575,0.065263,76555.0,76554.0,0.12447254]
[1731135152479,0.065263,76555.0,76554.0,0.29858026]
[1731135154185,0.065263,76555.0,76554.0,0.12447254]
[1731135154386,0.065263,76555.0,76554.0,0.29850742]
[1731135154586,0.065263,76555.0,76554.0,0.2038694]
[1731135154887,0.065263,76555.0,76554.0,0.29850896]
[1731135157593,0.065263,76555.0,76554.0,0.2038694]
[1731135158686,0.065263,76555.0,76554.0,0.2343694]
[1731135159788,0.065263,76555.0,76554.0,0.16174208]
[1731135159988,0.065263,76555.0,76554.0,0.2343694]
[1731135161288,0.065263,76555.0,76554.0,0.31262414]
[1731135162195,0.065263,76555.0,76554.0,0.23999682]
[1731135162396,0.065263,76555.0,76554.0,0.2343694]
[1731135162590,0.065263,76555.0,76554.0,0.3126894]
[1731135162787,0.065263,76555.0,76554.0,0.2343694]
[1731135163093,0.065263,76555.0,76554.0,0.3126894]
[1731135163395,0.065263,76555.0,76554.0,0.2343694]
[1731135164191,0.065263,76555.0,76554.0,0.32900779]
[1731135166188,0.065263,76555.0,76554.0,0.25638047]
[1731135167393,0.065263,76555.0,76554.0,0.25638303]
[1731135167590,0.065263,76555.0,76554.0,0.16174208]
[1731135168298,0.065263,76555.0,76554.0,0.25634977]
[1731135168499,0.065263,76555.0,76554.0,0.18786742]
[1731135168694,0.065263,76555.0,76554.0,0.28245763]
[1731135168891,0.065263,76555.0,76554.0,0.18786742]
[1731135169397,0.065263,76555.0,76554.0,0.28232301]
[1731135169595,0.065263,76555.0,76554.0,0.18786742]
[1731135170000,0.065263,76555.0,76554.0,0.28225267]
[1731135172091,0.065263,76555.0,76554.0,0.25175267]
[1731135172092,0.13789032,76555.0,76554.0,0.25175267]
[1731135172505,0.13789032,76555.0,76554.0,0.15736742]
[1731135173204,0.13789032,76555.0,76554.0,0.15761844]
[1731135174998,0.49869032,76555.0,76554.0,0.17105331]
[1731135175199,0.49869032,76555.0,76554.0,0.09140543]
[1731135175406,0.49869032,76555.0,76554.0,0.02612534]
[1731135176499,0.61345032,76555.0,76554.0,0.02612534]
[1731135178607,0.25265032,76555.0,76554.0,0.02612534]
[1731135178801,0.97425032,76555.0,76554.0,0.02612534]
[1731135190211,0.901623,76555.0,76554.0,0.02612534]
[1731135190411,0.901623,76555.0,76554.0,0.17144448]
[1731135190616,0.97425032,76555.0,76554.0,0.17144448]
[1731135190922,0.97425032,76555.0,76554.0,0.10616439]
[1731135191216,0.97425032,76555.0,76554.0,0.10629817]
[1731135191517,0.85949032,76555.0,76554.0,0.02612534]
[1731135193908,0.786863,76555.0,76554.0,0.02612534]
[1731135194116,0.85949032,76555.0,76554.0,0.02612534]
[1731135195226,0.85949032,76555.0,76554.0,0.10661088]
[1731135195724,0.85949032,76555.0,76554.0,0.02612534]
[1731135196116,0.786863,76555.0,76554.0,0.02612534]
[1731135196516,0.426063,76555.0,76554.0,0.02612534]
[1731135199126,0.065263,76555.0,76554.0,0.02612534]
[1731135202715,0.065263,76555.0,76554.0,0.10675922]
[1731135204621,0.065263,76555.0,76554.0,0.18503549]
[1731135205019,0.065263,76555.0,76554.0,0.18484975]
[1731135205431,0.065263,76555.0,76554.0,0.10657348]
[1731135206521,0.065263,76555.0,76554.0,0.1848634]
[1731135206720,0.065263,76555.0,76554.0,0.10657348]
[1731135207530,0.065263,76555.0,76554.0,0.02612534]
[1731135208531,0.065263,76555.0,76554.0,0.1069029]
[1731135209628,0.426063,76555.0,76554.0,0.1069029]
[1731135210230,0.065263,76555.0,76554.0,0.1069029]
[1731135210428,0.426063,76555.0,76554.0,0.1069029]
[1731135210822,0.426063,76555.0,76554.0,0.02612534]
[1731135211537,0.47746481,76555.0,76554.0,0.02612534]
[1731135214641,0.47746481,76555.0,76554.0,0.10675763]
[1731135215533,0.47746481,76555.0,76554.0,0.02612534]
[1731135218540,0.55009213,76555.0,76554.0,0.02612534]
[1731135218742,0.47746481,76555.0,76554.0,0.02612534]
[1731135220146,0.55009213,76555.0,76554.0,0.02612534]
[1731135222238,0.91089213,76555.0,76554.0,0.02612534]
[1731135222738,0.91089213,76555.0,76548.0,0.05219617]
[1731135222739,0.84562913,76555.0,76553.0,5.4e-07]
[1731135222945,0.84562913,76555.0,76547.0,0.05034214]
[1731135222946,0.065265,76553.0,76547.0,0.05034214]
[1731135223145,0.065265,76553.0,76540.0,0.0061]
[1731135223146,0.43342732,76548.0,76543.0,0.05219617]
[1731135223340,0.13789932,76544.0,76543.0,0.05219617]
[1731135224246,0.13789932,76544.0,76539.0,0.0331]
[1731135224247,0.065273,76543.0,76542.0,0.05219617]
[1731135224444,0.13790032,76543.0,76542.0,0.05219617]
[1731135224750,0.13790032,76543.0,76539.0,0.0331]
[1731135224751,0.065274,76542.0,76541.0,0.05219617]
[1731135225752,0.065275,76541.0,76540.0,0.04219617]
[1731135225949,0.426075,76541.0,76540.0,0.04219617]
[1731135226254,0.065276,76540.0,76539.0,0.08393309]
[1731135226438,0.065276,76540.0,76539.0,0.0331]
[1731135226841,0.3608,76541.0,76536.0,0.0329]
[1731135227160,0.13790432,76539.0,76538.0,0.07839243]
[1731135227449,0.065277,76539.0,76538.0,0.07839243]
[1731135233558,0.426077,76539.0,76538.0,0.07839243]
[1731135236858,0.61266432,76539.0,76538.0,0.07839243]
[1731135246771,0.68529164,76539.0,76530.0,0.0061]
[1731135246968,0.065285,76529.0,76527.0,0.06524521]
[1731135247168,0.179245,76529.0,76526.0,0.06524521]
[1731135247369,0.179245,76529.0,76525.0,0.11751569]
[1731135247763,0.179245,76529.0,76525.0,0.05227048]
[1731135251467,0.22948883,76529.0,76525.0,0.05227048]
[1731135251668,0.95108883,76529.0,76525.0,0.05227048]
[1731135252581,1.02371615,76529.0,76525.0,0.05227048]
[1731135254179,0.83712883,76529.0,76525.0,0.05227048]
[1731135254380,1.02371615,76529.0,76526.0,0.0937]
[1731135255474,0.30211615,76529.0,76526.0,0.0937]
[1731135255783,1.02371615,76529.0,76526.0,0.0937]
[1731135257186,0.900845,76529.0,76526.0,0.0937]
[1731135258577,0.786885,76529.0,76528.0,0.14364787]
[1731135258779,0.786885,76529.0,76528.0,0.22476745]
[1731135258980,0.786885,76529.0,76528.0,0.15952224]
[1731135261285,0.426085,76529.0,76528.0,0.15952224]
[1731135262586,0.426085,76529.0,76528.0,0.15947002]
[1731135263178,0.426085,76529.0,76528.0,0.23775994]
[1731135263381,0.426085,76529.0,76528.0,0.15947002]
[1731135263586,0.426085,76529.0,76528.0,0.23775994]
[1731135263886,0.426085,76529.0,76528.0,0.23765907]
[1731135264078,0.0061,76535.0,76528.0,0.23758386]
[1731135264276,0.065282,76533.0,76532.0,0.14349671]
[1731135264577,0.065282,76533.0,76532.0,0.426082]
[1731135266881,0.065282,76533.0,76532.0,0.49870932]
[1731135267390,0.065282,76533.0,76532.0,0.43342732]
[1731135270285,0.065282,76533.0,76532.0,0.3608]
[1731135271492,0.065282,76533.0,76532.0,0.42597806]
[1731135271878,0.065282,76533.0,76532.0,0.44149558]
[1731135272083,0.065282,76533.0,76532.0,0.08069562]
[1731135273385,0.065282,76533.0,76532.0,0.08059762]
[1731135274391,0.065282,76533.0,76532.0,0.06513914]
[1731135274593,0.065282,76533.0,76531.0,0.06513914]
[1731135275185,0.065282,76533.0,76532.0,0.14587501]
[1731135275592,0.065282,76533.0,76532.0,0.06513914]
[1731135276286,0.065282,76533.0,76532.0,0.14586954]
[1731135276988,0.065282,76533.0,76532.0,0.08069137]
[1731135277584,0.065282,76533.0,76532.0,0.14582805]
[1731135278487,0.065282,76533.0,76531.0,0.0300487]
[1731135279192,0.065283,76532.0,76531.0,0.0300487]
[1731135286586,0.065283,76532.0,76531.0,0.11084624]
[1731135288195,0.065283,76532.0,76531.0,0.20722854]
[1731135290293,0.065283,76532.0,76531.0,0.17717984]
[1731135290491,0.065283,76532.0,76531.0,0.08079754]
[1731135291304,0.065285,76529.0,76528.0,0.07840266]
[1731135291501,0.13791232,76529.0,76528.0,0.2562576]
[1731135293302,0.07262732,76529.0,76528.0,0.2562576]
[1731135294094,0.0061,76535.0,76528.0,0.2562576]
[1731135294095,0.07262732,76531.0,76528.0,0.2562576]
[1731135294405,0.07262732,76531.0,76529.0,0.17785494]
[1731135294605,0.07262732,76531.0,76530.0,0.17785494]
[1731135296008,0.07262732,76531.0,76530.0,0.17799544]
[1731135297302,0.07138,76535.0,76530.0,0.17799544]
[1731135297493,0.13790732,76535.0,76533.0,0.07833872]
[1731135297693,0.13790732,76535.0,76534.0,0.08120372]
[1731135298897,0.07262732,76535.0,76534.0,0.15954244]
[1731135299100,0.07262732,76535.0,76534.0,0.08120372]
[1731135299794,0.07262732,76535.0,76534.0,0.17790805]
[1731135300594,0.07262732,76536.0,76534.0,0.17783293]
[1731135300892,0.07262732,76536.0,76535.0,0.08112958]
[1731135301706,0.07262732,76536.0,76533.0,0.06528622]
[1731135302498,0.07262732,76536.0,76533.0,0.13056722]
[1731135302707,0.11316,76537.0,76533.0,0.06528622]
[1731135302908,0.11926,76539.0,76536.0,0.065279]
[1731135303106,0.11316,76539.0,76536.0,0.065279]
[1731135304804,0.47556,76540.0,76539.0,0.065277]
[1731135305006,0.47396,76540.0,76539.0,0.065277]
[1731135305301,0.3608,76540.0,76539.0,0.065277]
[1731135305705,0.3608,76540.0,76539.0,0.21144453]
[1731135306007,0.0061,76544.0,76540.0,0.065276]
[1731135306201,0.11926,76545.0,76540.0,0.065276]
[1731135306396,0.11926,76545.0,76544.0,0.05221257]
[1731135306703,0.184532,76545.0,76540.0,0.13054204]
[1731135307308,0.184532,76545.0,76542.0,0.065274]
[1731135307707,0.0061,76545.0,76539.0,0.06526604]
[1731135308018,0.0061,76545.0,76544.0,0.13053804]
[1731135308319,0.0061,76545.0,76544.0,0.21903865]
[1731135308703,0.0061,76545.0,76544.0,0.31678533]
[1731135312309,0.0061,76545.0,76544.0,0.21950933]
[1731135313609,0.0061,76545.0,76544.0,0.29766976]
[1731135313808,0.0061,76545.0,76544.0,0.34806491]
[1731135314613,0.0061,76545.0,76544.0,0.34805409]
[1731135316214,0.0061,76545.0,76544.0,0.26990448]
[1731135316414,0.0061,76545.0,76544.0,0.34805409]
[1731135316605,0.0061,76545.0,76544.0,0.18829447]
[1731135319819,0.0061,76545.0,76544.0,0.26092179]
[1731135320122,0.0061,76545.0,76544.0,0.11566715]
[1731135320308,0.00196071,76547.0,76546.0,0.065271]
[1731135320514,0.00196071,76547.0,76546.0,0.21173032]
[1731135320722,0.00196071,76547.0,76546.0,0.14648892]
[1731135322023,0.00196071,76547.0,76546.0,0.21154566]
[1731135322228,0.00196071,76547.0,76546.0,0.14648892]
[1731135322617,0.00196071,76547.0,76546.0,0.13033137]
[1731135322924,0.00196071,76547.0,76546.0,0.065271]
[1731135323223,0.00196071,76547.0,76546.0,0.13033137]
[1731135323426,0.00196071,76547.0,76546.0,0.065271]
[1731135323724,0.00196071,76547.0,76546.0,0.14641092]
[1731135325826,0.00196071,76547.0,76546.0,0.86801092]
[1731135326528,0.00196071,76547.0,76546.0,1.25993092]
[1731135327028,0.0061,76556.0,76555.0,0.065263]
[1731135327220,0.065255,76565.0,76563.0,0.065256]
[1731135328925,0.065255,76565.0,76562.0,0.12466643]
[1731135329122,0.065255,76565.0,76564.0,0.065255]
[1731135329925,0.3608,76567.0,76566.0,0.065254]
[1731135330126,0.3608,76567.0,76566.0,0.13788132]
[1731135330327,0.06525,76571.0,76570.0,0.065249]
[1731135330637,0.0322,76573.0,76572.0,0.065249]
[1731135330832,0.07872732,76582.0,76570.0,0.07262732]
[1731135331021,0.065245,76577.0,76576.0,0.065244]
[1731135331322,0.065245,76577.0,76576.0,0.11727283]
[1731135331525,0.065245,76577.0,76576.0,0.065244]
[1731135331726,0.065245,76577.0,76576.0,0.11727283]
[1731135331922,0.065245,76577.0,76576.0,0.05202883]
[1731135332629,0.065245,76577.0,76573.0,0.065248]
[1731135332630,0.065245,76576.0,76575.0,0.05202883]
[1731135332829,0.07262732,76578.0,76573.0,0.05040479]
[1731135333033,0.065244,76577.0,76576.0,0.05201038]
[1731135334530,0.07262732,76578.0,76575.0,0.05201038]
[1731135334730,0.065245,76576.0,76575.0,0.05201038]
[1731135334931,0.065245,76576.0,76573.0,0.065248]
[1731135335430,0.065245,76576.0,76575.0,0.05200556]
[1731135336632,0.065246,76575.0,76573.0,0.065248]
[1731135337036,0.07262732,76578.0,76572.0,0.41337918]
[1731135337242,0.065248,76573.0,76572.0,0.41269918]
[1731135337831,0.065248,76573.0,76572.0,0.05189918]
[1731135338032,0.065248,76573.0,76572.0,0.3608]
[1731135346438,0.065248,76573.0,76572.0,0.39980249]
[1731135346746,0.065248,76573.0,76572.0,0.3608]
[1731135348145,0.065248,76573.0,76568.0,0.0061]
[1731135348330,0.065248,76573.0,76556.0,0.10392732]
[1731135348331,0.065254,76566.0,76565.0,0.0650399]
[1731135348530,0.065254,76566.0,76565.0,0.08103916]
[1731135352943,0.426054,76566.0,76565.0,0.08103916]
[1731135353155,0.3608,76566.0,76564.0,0.06514471]
[1731135353346,0.10572732,76565.0,76562.0,0.06514471]
[1731135353641,0.065258,76561.0,76560.0,0.06514471]
[1731135353845,0.13788532,76561.0,76560.0,0.03908814]
[1731135354048,0.07262732,76561.0,76559.0,0.03908814]
[1731135354237,0.07262732,76561.0,76558.0,0.03908814]
[1731135354238,0.06526,76559.0,76558.0,0.03908814]
[1731135355547,0.06526,76559.0,76553.0,0.15680296]
[1731135355548,0.42606,76559.0,76553.0,0.05205623]
[1731135355840,0.07262732,76556.0,76554.0,0.0390925]
[1731135356043,0.065265,76553.0,76552.0,0.0390925]
[1731135356246,0.13789232,76553.0,76546.0,0.05211752]
[1731135356546,0.065269,76548.0,76547.0,0.03908293]
[1731135357351,0.13789632,76548.0,76547.0,0.03908293]
[1731135357550,0.07262732,76548.0,76546.0,0.03908293]
[1731135357740,0.06527,76547.0,76546.0,0.03908293]
[1731135358347,0.07262732,76548.0,76543.0,0.05211752]
[1731135358552,0.06527,76547.0,76546.0,0.03905757]
[1731135359648,0.065271,76546.0,76545.0,0.03905757]
[1731135359849,0.13789832,76546.0,76545.0,0.03905757]
[1731135360048,0.07262732,76546.0,76543.0,0.05211752]
[1731135360245,0.065272,76544.0,76543.0,0.05211752]
[1731135360441,0.065272,76545.0,76542.0,0.05204862]
[1731135360637,0.065274,76542.0,76541.0,0.05204862]
[1731135361452,0.065275,76541.0,76540.0,0.08208597]
[1731135361846,0.07262732,76543.0,76540.0,0.20924346]
[1731135362046,0.065274,76542.0,76541.0,0.17920611]
[1731135363247,0.065274,76542.0,76541.0,0.17843678]
[1731135363650,0.065274,76542.0,76541.0,0.08140506]
[1731135365656,0.065274,76542.0,76541.0,0.15941517]
[1731135367756,0.065274,76542.0,76541.0,0.0814504]
[1731135368054,0.065274,76542.0,76541.0,0.15945138]
[1731135368647,0.065274,76542.0,76541.0,0.0814504]
[1731135368855,0.065275,76541.0,76540.0,0.03003735]
[1731135369451,0.13790232,76541.0,76540.0,0.03003735]
[1731135371453,0.065275,76541.0,76540.0,0.03003735]
[1731135372770,0.065275,76541.0,76540.0,0.10328259]
[1731135373167,0.065275,76541.0,76540.0,0.03827911]
[1731135373364,0.065275,76541.0,76540.0,0.10328259]
[1731135373558,0.065275,76541.0,76540.0,0.18519853]
[1731135373758,0.065275,76541.0,76540.0,0.1852294]
[1731135374069,0.065275,76541.0,76540.0,0.18525168]
[1731135374566,0.065275,76541.0,76540.0,0.18528665]
[1731135375074,0.065275,76541.0,76540.0,0.1202523]
[1731135376860,0.07262732,76543.0,76540.0,0.21806251]
[1731135377069,0.065275,76541.0,76540.0,0.03003735]
[1731135377270,0.065275,76541.0,76540.0,0.20988699]
[1731135377565,0.065275,76541.0,76540.0,0.21817322]
[1731135380776,0.065275,76541.0,76540.0,0.21817522]
[1731135381771,0.065275,76541.0,76540.0,0.3094619]
[1731135381974,0.065275,76541.0,76540.0,0.42235853]
[1731135382467,0.065275,76541.0,76540.0,0.3010345]
[1731135383672,0.065275,76541.0,76540.0,0.40536214]
[1731135384364,0.03588163,76541.0,76540.0,0.40536214]
[1731135384667,0.03588163,76541.0,76540.0,0.30111222]
[1731135385060,0.03588163,76541.0,76540.0,0.43041081]
[1731135385775,0.03588163,76541.0,76540.0,0.50303813]
[1731135385978,0.03588163,76541.0,76540.0,0.32571816]
[1731135386470,0.03588163,76541.0,76540.0,0.22807346]
[1731135386776,0.03588163,76541.0,76540.0,0.32558093]
[1731135388373,0.03588163,76541.0,76540.0,0.56786581]
[1731135388676,0.03588163,76541.0,76540.0,0.43886654]
[1731135390366,0.03588163,76541.0,76540.0,0.36623922]
[1731135390868,0.03588163,76541.0,76540.0,0.72703922]
[1731135391172,0.03588163,76541.0,76540.0,0.426076]
[1731135391370,0.03588163,76541.0,76540.0,0.72756925]
[1731135391777,0.0061,76546.0,76540.0,0.72756925]
[1731135392078,0.065274,76542.0,76541.0,0.57997732]
[1731135392278,0.0061,76552.0,76551.0,0.065266]
[1731135392581,0.43342732,76570.0,76556.0,0.065262]
[1731135392582,0.065259,76560.0,76556.0,0.065262]
[1731135392765,0.065259,76560.0,76556.0,0.1556179]
[1731135393271,0.07262732,76563.0,76556.0,0.1556179]
[1731135393466,0.06526,76559.0,76556.0,0.23388231]
[1731135393666,0.06526,76559.0,76556.0,0.1556179]
[1731135393868,0.06526,76559.0,76556.0,0.23388189]
[1731135394172,0.0061,76568.0,76556.0,0.24124721]
[1731135394374,0.0061,76573.0,76567.0,0.3608]
[1731135394568,0.06525,76571.0,76568.0,0.21937141]
[1731135394767,0.06525,76571.0,76569.0,0.06522032]
[1731135394979,0.06525,76571.0,76569.0,0.07351704]
[1731135395276,0.06525,76571.0,76570.0,0.00829672]
[1731135396373,0.0061,76581.0,76570.0,0.08092404]
[1731135396571,0.0061,76586.0,76580.0,0.07262732]
[1731135396771,0.3608,76588.0,76582.0,0.05208286]
[1731135396973,0.3608,76588.0,76583.0,0.06037958]
[1731135397177,0.426035,76588.0,76587.0,0.03906]
[1731135397475,0.49866232,76588.0,76587.0,0.00829672]
[1731135397979,0.49866232,76588.0,76587.0,0.00833438]
[1731135399476,0.49866232,76588.0,76587.0,0.04731591]
[1731135400478,0.49866232,76588.0,76587.0,0.00833438]
[1731135402582,0.49866232,76588.0,76587.0,0.05869856]
[1731135404180,0.49866232,76588.0,76587.0,0.05036418]
[1731135404376,0.43342732,76588.0,76584.0,0.065238]
[1731135404572,0.065236,76587.0,76585.0,0.00837764]
[1731135404774,0.065236,76587.0,76586.0,0.00837764]
[1731135405172,0.065236,76587.0,76586.0,0.00847016]
[1731135405568,0.13786332,76587.0,76586.0,0.00847016]
[1731135406170,0.065236,76587.0,76586.0,0.065237]
[1731135406483,0.07262732,76587.0,76586.0,0.07373354]
[1731135411586,0.07262732,76587.0,76586.0,0.065237]
[1731135411790,0.07262732,76587.0,76586.0,0.07372151]
[1731135412581,0.13786332,76587.0,76586.0,0.00848451]
[1731135412782,0.065236,76587.0,76586.0,0.00848451]
[1731135412986,0.00805914,76590.0,76586.0,0.00848451]
[1731135413283,0.00805914,76590.0,76589.0,0.065234]
[1731135413284,0.07329214,76590.0,76589.0,0.065234]
[1731135413491,0.07329214,76590.0,76589.0,0.07371851]
[1731135413981,0.14591946,76590.0,76589.0,0.07371851]
[1731135414890,0.14591946,76590.0,76589.0,0.065234]
[1731135415081,0.14591946,76590.0,76589.0,0.00856922]
[1731135415592,0.14591946,76590.0,76589.0,0.0224277]
[1731135416583,0.14591946,76590.0,76589.0,0.06140923]
[1731135416779,0.00805914,76590.0,76589.0,0.06140923]
[1731135416982,0.00805914,76590.0,76589.0,0.0876617]